Workbook

Sheet DONNEES
A1: prestations | B1: COD_CPT | C1: LIB_CPT | D1: Type1 | E1: BUD SPATH | F1: cpte spath
A2: Acconage | B2: 40100001 | C2: ENT KERRIT M'HAMED | D2: Fluorure d'Aluminium | E2: VOIR CODE VBA | F2: VOIR CODE VBA
A3: Surv. Et Echantillonage | B3: 40100002 | C3: STEG GABES | D3: Anhydrite
A4: Droit de Port et Gardiennage | B4: 40100003 | C4: SOTREGAMES | D4: Spath Fluor
A5: Location Chariots, trax ou bène | B5: 40100004 | C5: STTAT | D5: Alumine Hydratée
A6: Location Camion | B6: 40100005 | C6: ONAS | D6: Alumine calcinée
A7: Mouvement Navire | B7: 40100006 | C7: SGS | D7: Soufre
A8: Nettoyage Quai | B8: 40100007 | C8: HOTEL OASIS GABES
A9: Main d'œuvre extérieure | B9: 40100008 | C9: GES(XEROX)
A10: Tole ou planche pour arrimage | B10: 40100009 | C10: CIT (SSIT)
A11: Certificat d'origine | B11: 40100010 | C11: OMMP (Ex OPNT)
A12: Assistance & Formalités | B12: 40100011 | C12: GCT(GROUPE CHIMIQUE TUN)
B13: 40100012 | C13: SOGEM
B14: 40100013 | C14: BROSSETTE
B15: 40100014 | C15: LIBRAIRIE JEMAI ABDESSLE
B16: 40100015 | C16: KAMMOUN
B17: 40100016 | C17: SOMATEC
B18: 40100017 | C18: ERI(ENT REUSSITE INDUST)
B19: 40100018 | C19: SOGETRAM GABES
B20: 40100019 | C20: MFGT(ACMG)
B21: 40100020 | C21: HOTEL CHEMS
B22: 40100021 | C22: ETS NAHALI
B23: 40100022 | C23: AVIS AFRIC AUTO
B24: 40100023 | C24: BEN GUIZA COMPTOIR AUTO
B25: 40100024 | C25: KHALFALLI ABDESSALEM
B26: 40100025 | C26: ALI BEN MED ZIDI
B27: 40100026 | C27: COMPTOIR ELECTRIQUE
B28: 40100027 | C28: SOGIM
B29: 40100028 | C29: SECURAS
B30: 40100029 | C30: AGTL(A.GABES TRANSP.LEGE
B31: 40100030 | C31: MEDITERANEE TOURISME
B32: 40100031 | C32: MES
B33: 40100032 | C33: SCI
B34: 40100033 | C34: CMP
B35: 40100034 | C35: ELECTROMA GARAGE
B36: 40100035 | C36: TECHNI-COLD(ASKRI RACHID
B37: 40100036 | C37: MOHAMED HASSEN
B38: 40100037 | C38: AGENCE TECHNIQUE TRANSIT SERVICES
B39: 40100038 | C39: SUPERTOURS
B40: 40100039 | C40: K.DAMAK SHIPP.COMPANY
B41: 40100040 | C41: INTERNATIONAL TRANSIT
B42: 40100041 | C42: ENT TOUITI MAHMOUD
B43: 40100042 | C43: SDS(STE DISTRIB.SUD)
B44: 40100043 | C44: TRANSISUD
B45: 40100044 | C45: AMINE SOUI
B46: 40100045 | C46: STTS
B47: 40100046 | C47: CBM
B48: 40100047 | C48: COLLA STPC
B49: 40100048 | C49: SOGES
B50: 40100049 | C50: SOFAQ
B51: 40100050 | C51: SOFEM
B52: 40100051 | C52: GABES PLAST
B53: 40100052 | C53: DAR ESSALEM
B54: 40100053 | C54: TELECOM DJERBA
B55: 40100054 | C55: AGENCE ISUZU (SUD AUTO JAPON)
B56: 40100055 | C56: SESI(STE EQUIP.SCE INFOR
B57: 40100056 | C57: CBS(CHAARI BUREATIQUE SC
B58: 40100057 | C58: IBH(IMPRIM.BEN HAMIDA)
B59: 40100058 | C59: EFM(ENT FORGE MODERNE)
B60: 40100059 | C60: AGENCE MARITIME MOHAB
B61: 40100060 | C61: STE NOUR GABES
B62: 40100061 | C62: STE EQUIP.AUTOMOBILE(SEA
B63: 40100062 | C63: TELECTROMED
B64: 40100063 | C64: INFOLOG
B65: 40100064 | C65: STE TOUT POUR SOUDURE (TPS)
B66: 40100065 | C66: ATIG
B67: 40100066 | C67: MAHMOUD ALI ENTREPRENEUR
B68: 40100067 | C68: ENT ANIS SERVICES
B69: 40100068 | C69: GEODRILLetTECHNICS
B70: 40100069 | C70: MAINTENANCEetEQUIP.USINES
B71: 40100070 | C71: CABINET ABDALLAH REHOUMA
B72: 40100071 | C72: SERPIM
B73: 40100072 | C73: AZZABOU CHOKRI
B74: 40100073 | C74: SSP AMARRAGE
B75: 40100074 | C75: COMAR
B76: 40100075 | C76: STAR
B77: 40100076 | C77: REVOLON
B78: 40100077 | C78: ZAOUI MEUBLES
B79: 40100078 | C79: STE CHIMIQUE ALKIMIA
B80: 40100079 | C80: MOBIL
B81: 40100080 | C81: LCAE(LABO.CENTR.ANALYSE)
B82: 40100081 | C82: PUBLICITE REUNIE
B83: 40100082 | C83: HABIB HASSEN
B84: 40100083 | C84: SOMETRAC
B85: 40100084 | C85: AFI
B86: 40100085 | C86: CHAMBRE TUNISO-FRANCAISE
B87: 40100086 | C87: STEG TUNIS
B88: 40100087 | C88: TST(TUNIS.SEA TRANSP.COM
B89: 40100088 | C89: PTT
B90: 40100089 | C90: STTAT TRANSIT
B91: 40100090 | C91: SONEDE
B92: 40100091 | C92: SACMI
B93: 40100092 | C93: MED.SHIPP
B94: 40100093 | C94: ARTEL
B95: 40100094 | C95: TECI
B96: 40100095 | C96: POLYMATEC
B97: 40100096 | C97: TOFCO
B98: 40100097 | C98: SCHNEIDER
B99: 40100098 | C99: SECURITAS
B100: 40100099 | C100: CABINET GUELLATY
B101: 40100100 | C101: BARKALLAH HAMZA
B102: 40100101 | C102: HOTEL ABOUNAWAS
B103: 40100102 | C103: HERTZ
B104: 40100103 | C104: BSB
B105: 40100104 | C105: SOCOTU
B106: 40100105 | C106: LE RENOUVEAU
B107: 40100106 | C107: STMS
B108: 40100107 | C108: REST.DU GOLFE
B109: 40100108 | C109: CTN
B110: 40100109 | C110: TOUAREGS
B111: 40100110 | C111: CIREB (ETS CHAHMI)
B112: 40100111 | C112: ENT MAHMOUD BOURICHA
B113: 40100112 | C113: LA GAZETTE DU SUD
B114: 40100113 | C114: STPCM
B115: 40100114 | C115: JEUNE AFRIQUE S.A.P
B116: 40100115 | C116: EL HORRIA
B117: 40100116 | C117: ETS BOUDRANT
B118: 40100117 | C118: SOGEQ
B119: 40100118 | C119: SOTRADIES
B120: 40100119 | C120: SCRIPT
B121: 40100120 | C121: KHEMOUSSI KHENISSI
B122: 40100121 | C122: STE SOUDURE MODERNE
B123: 40100122 | C123: SOGEMBAL
B124: 40100123 | C124: LIB.MAHMOUD HAYDER
B125: 40100124 | C125: EAMGS(ETS AYAT)
B126: 40100125 | C126: AIR LIQUIDE (STOA)
B127: 40100126 | C127: AROUSSI OUANANE
B128: 40100127 | C128: EIM(EQUIP.INDUST.MINIER)
B129: 40100128 | C129: ASS.INT.SANTEetSECUR.TRAV
B130: 40100129 | C130: TAHAR KAHLOUL(SUD FLEXIB
B131: 40100130 | C131: MEUBLATEX
B132: 40100131 | C132: STE KETATA FRERES
B133: 40100132 | C133: STAFIM PEUGEOT
B134: 40100133 | C134: MED BEN RJEB
B135: 40100134 | C135: ENT MAZHOUDI BECHIR
B136: 40100135 | C136: TOUTA
B137: 40100136 | C137: HOTEL TACAPES
B138: 40100137 | C138: EBM
B139: 40100138 | C139: ETI
B140: 40100139 | C140: FEKILI YOUSSEF
B141: 40100140 | C141: ETS MONCEF KALEL
B142: 40100141 | C142: MAINTENANCE SERVICES M.S
B143: 40100142 | C143: SOGEGAT
B144: 40100143 | C144: COGEL FETHI BATITA
B145: 40100144 | C145: PHARM.DAHMANI NOUREDDINE
B146: 40100145 | C146: ABDELKRIM B.MOKHTAR AMAR
B147: 40100146 | C147: SNOUSSI SADOK
B148: 40100147 | C148: CALEB BRETT
B149: 40100148 | C149: SOMETRI
B150: 40100149 | C150: SORETOL
B151: 40100150 | C151: SES
B152: 40100151 | C152: SIG GABES
B153: 40100152 | C153: CARRELAGES HEDI GHRISS
B154: 40100153 | C154: SCIN
B155: 40100154 | C155: SGTI
B156: 40100155 | C156: SOGACEP
B157: 40100156 | C157: GABES INDUSTRIE
B158: 40100157 | C158: ELECTRICITE MT/BT
B159: 40100158 | C159: JAWALI et GAZEL
B160: 40100159 | C160: SOTETEL
B161: 40100160 | C161: TRAMCA (STMCB)
B162: 40100161 | C162: BAJI CHATTAOUI
B163: 40100162 | C163: HAMIDA SOUAI
B164: 40100163 | C164: SUD METAL
B165: 40100164 | C165: ELECTRICITE BOUKHROUF
B166: 40100165 | C166: AMADER
B167: 40100166 | C167: STE ARABES DE SCES S.A.S
B168: 40100167 | C168: TUNISIE ELECTRONIQUE
B169: 40100168 | C169: EMSG
B170: 40100169 | C170: SORECOP
B171: 40100170 | C171: REST.DAR EL JELD
B172: 40100171 | C172: EGETRI
B173: 40100172 | C173: STE AMARA D'ENTRETIEN
B174: 40100173 | C174: REST.DE L'OASIS
B175: 40100174 | C175: OASIS TECHNICAL CORPORATION
B176: 40100175 | C176: GENERAL EQUIPEMENT
B177: 40100176 | C177: COMAR TUNIS
B178: 40100177 | C178: CPM(COMPL.PLAST.MEZZOUNA
B179: 40100178 | C179: SOTUMAGASED
B180: 40100179 | C180: SAAMRA
B181: 40100180 | C181: SOTUMA
B182: 40100181 | C182: ENT MESSAOUDI
B183: 40100182 | C183: TMST
B184: 40100183 | C184: STE TUNIS.ACCONAGE MANUT
B185: 40100184 | C185: ABED MECANIQUE GLE(AMG)
B186: 40100185 | C186: COMPTOIR NLE PLASTIQUE
B187: 40100186 | C187: LA COURONNE
B188: 40100187 | C188: SOMAR
B189: 40100188 | C189: SAMDEP
B190: 40100189 | C190: SEEMIM
B191: 40100190 | C191: PROLOGIC
B192: 40100191 | C192: BUDGET
B193: 40100192 | C193: ZIDI BELGACEM
B194: 40100193 | C194: ZIDI HOUCINE
B195: 40100194 | C195: SOGHATRAP
B196: 40100195 | C196: MATAFI
B197: 40100196 | C197: STE MAGASIN GENERAL
B198: 40100198 | C198: ETS SALAH GUEFRACH
B199: 40100199 | C199: SOGEPRO
B200: 40100200 | C200: SKANES MEUBLES
... 1038 more rows

Sheet Saisie charges
C1: LA SAISIE DES CHARGES
A2: type | B2: num vte | C2: Date | D2: Prestation | E2: Fournisseur | F2: Mnt Estimé | G2: Mnt Réel | H2: N° Fre | I2: Cpte Cptble
A4: AlF3 | B4: 1/F/14 | C4: 12/06/14 | D4: Acconage | E4: GROUPEMENT DES MANUT.DE GABES (GMGA) | F4: 5,467.564 | G4: 0.000 | I4: 62420172
A5: AlF3 | B5: 1/F/14 | C5: 12/06/14 | D5: Location Camion | E5: LOCAMAT | F5: 2,300.000 | G5: 2,458.987 | H5: 54 | I5: 62420172
A6: AlF3 | B6: 1/F/14 | C6: 12/06/14 | D6: Surv. Et Echantillonage | E6: SGS | F6: 300.000 | G6: 0.000 | I6: 62200182
A7: AlF3 | B7: 1/F/14 | C7: 12/06/14 | D7: Main d'œuvre extérieure | E7: GHEDAMSI TRAVEAUX SCES | F7: 2,000.000 | G7: 2,200.000 | H7: 14 | I7: 62420172
A8: AlF3 | B8: 1/F/14 | C8: 12/06/14 | D8: Location Chariots, trax ou bène | E8: LOCAMAT | F8: 2,360.000 | G8: 0.000 | I8: 62420172
A9: AlF3 | B9: 1/F/14 | C9: 12/06/14 | D9: Certificat d'origine | E9: CHAMBRE TUNISO-FRANCAISE | F9: 230.000 | G9: 0.000 | I9: 62420172
A10: AlF3 | B10: 1/F/14 | C10: 12/06/14 | D10: Acconage | E10: STE TUNIS.ACCONAGE MANUT | F10: 500.000 | G10: 550.650 | H10: 4 | I10: 62420172
A11: AlF3 | B11: 02/F/15 | C11: 12/08/14 | D11: Acconage | E11: STE TUNIS.ACCONAGE MANUT | F11: 7,890.987 | G11: 0.000 | I11: 62420172
A12: AlF3 | B12: 02/F/15 | C12: 12/08/14 | D12: Location Camion | E12: LOCAMAT | F12: 2,000.000 | G12: 2,000.675 | H12: 43 | I12: 62420172
A13: AlF3 | B13: 02/F/15 | C13: 12/08/14 | D13: Certificat d'origine | E13: CHAMBRE TUNISO-FRANCAISE | F13: 500.000 | G13: 0.000 | I13: 62420172
A14: Spath Fluor | B14: g | C14: 12/05/14 | D14: Acconage | E14: GROUPEMENT DES MANUT.DE GABES (GMGA) | F14: 45,987.098 | G14: 0.000 | I14: 60450271
A15: Spath Fluor | B15: g | C15: 12/05/14 | D15: Surv. Et Echantillonage | E15: LOCAMAT | F15: 678.000 | G15: 765.000 | H15: 45 | I15: 62200382
A16: Alumine Hydratée | B16: 67 | C16: 30/11/14 | D16: Acconage | E16: GROUPEMENT DES MANUT.DE GABES (GMGA) | F16: 56,798.876 | G16: 0.000 | I16: 60450371
A17: AlF3 | B17: 12/Alf3/14 | C17: 12/05/14 | D17: Acconage | E17: STEG GABES | F17: 7,526.250 | G17: 8,625.236 | H17: 15 | I17: 62420172
A18: Anhydrite | B18: 263/15/14 | C18: 15/12/14 | D18: Acconage | E18: ENT KERRIT M'HAMED | F18: 5,640.263 | G18: 0.000 | I18: 62420772
A19: Anhydrite | B19: 263/15/14 | C19: 15/12/14 | D19: Location Camion | E19: LOCAMAT | F19: 12,000.000 | G19: 13,659.737 | H19: 12 | I19: 62420772
A20: Fluorure d'Aluminium | B20: 15/12 | C20: 15/11/14 | D20: Acconage | E20: ONAS | F20: 6,500.000 | G20: 7,000.000 | H20: 5 | I20: 62420172

Sheet Spath Fluor
A1: Spath Fluor | D1: Charges Totales : | G1: =SUM(F6:F20) -> 46,752.098
D2: Quantité totale reçue : | G2: =SUM(E6:E20) -> 7,689.876
D3: Frais moyenne / tonne : | G3: =IF(G2<>0,G1/G2,0) -> 6.080
D4: Ecart total / Budget : | G4: =SUM(H6:H20) -> -30,146.662
A5: Date | B5: Navire | C5: Ref Achat | D5: Origine | E5: Quantité | F5: Total Charges | G5: Frais / Tonne | H5: Ecart / Budget
A6: 12/05/14 | B6: hhh | C6: g | D6: mex | E6: 7,689.876 | F6: 46,752.098 | G6: 6.080 | H6: -30,146.662

Sheet Alumine Hydratée
A1: Alumine Hydratée | D1: Charges Totales : | G1: =SUM(F6:F21) -> 56,798.876
D2: Quantité totale reçue : | G2: =SUM(E6:E21) -> 768.000
D3: Frais moyenne / tonne : | G3: =IF(G2<>0,G1/G2,0) -> 73.957
D4: Ecart total / Budget : | G4: =SUM(H6:H21) -> 49,118.876
A5: Date | B5: Navire | C5: Ref Achat | D5: Origine | E5: Quantité | F5: Total Charges | G5: Frais / Tonne | H5: Ecart / Budget
A6: 30/11/14 | B6: GH | C6: 67 | D6: ITALIA | E6: 768.000 | F6: 56,798.876 | G6: 73.957 | H6: 49,118.876

Sheet Alumine calcinée
A1: Alumine Calcinée | D1: Charges Totales : | G1: =SUM(F6:F21) -> 0.000
D2: Quantité totale reçue : | G2: =SUM(E6:E21) -> 0.000
D3: Frais moyenne / tonne : | G3: =IF(G2<>0,G1/G2,0) -> 0.000
D4: Ecart total / Budget : | G4: =SUM(H6:H21) -> 0.000
A5: Date | B5: Navire | C5: Ref Achat | D5: Origine | E5: Quantité | F5: Total Charges | G5: Frais / Tonne | H5: Ecart / Budget

Sheet Soufre
A1: Soufre | D1: Charges Totales : | G1: =SUM(F6:F21) -> 0.000
D2: Quantité totale reçue : | G2: =SUM(E6:E21) -> 0.000
D3: Frais moyenne / tonne : | G3: =IF(G2<>0,G1/G2,0) -> 0.000
D4: Ecart total / Budget : | G4: =SUM(H6:H21) -> 0.000
A5: Date | B5: Navire | C5: Ref Achat | D5: Origine | E5: Quantité | F5: Total Charges | G5: Frais / Tonne | H5: Ecart / Budget

Sheet Anhydrite
A1: Anhydrite [à l'export] | D1: Charges Totales : | G1: =SUM(F6:F21) -> 19,300.000
D2: Quantité totale reçue : | G2: =SUM(E6:E21) -> 5,000.000
D3: Frais moyenne / tonne : | G3: =IF(G2<>0,G1/G2,0) -> 3.860
D4: Ecart total / Budget : | G4: =SUM(H6:H21) -> -30,700.000
A5: Date | B5: Navire | C5: Ref Achat | D5: Origine | E5: Quantité | F5: Total Charges | G5: Frais / Tonne | H5: Ecart / Budget
A6: 15/12/14 | B6: Naviros | C6: 263/15/14 | D6: CBA | E6: 5,000.000 | F6: 19,300.000 | G6: 3.860 | H6: -30,700.000

Sheet AlF3
A1: Fluorure d'Aluminium | D1: Charges Totales : | G1: =SUM(F6:F21) -> 32,584.099
D2: Quantité totale reçue : | G2: =SUM(E6:E21) -> 3,200.000
D3: Frais moyenne / tonne : | G3: =IF(G2<>0,G1/G2,0) -> 10.183
D4: Ecart total / Budget : | G4: =SUM(H6:H21) -> 584.099
A5: Date | B5: Navire | C5: Ref Achat | D5: Client | E5: Quantité | F5: Total Charges | G5: Frais / Tonne | H5: Ecart / Budget
A6: 12/06/14 | B6: NV MAZIN ARAB | C6: 1/F/14 | D6: CBA | E6: 1,200.000 | F6: 13,567.201 | G6: 11.306 | H6: 1,567.201
A7: 12/08/14 | B7: NV ALAB | C7: 02/F/15 | D7: KSA | E7: 500.000 | F7: 10,391.662 | G7: 20.783 | H7: 5,391.662
A8: 12/05/14 | B8: NV MAZIN | C8: 12/Alf3/14 | D8: CBA | E8: 1,500.000 | F8: 8,625.236 | G8: 5.750 | H8: -6,374.764

Sheet compte comptable
A1: Prestation/matière | B1: Spath Fluor | C1: Alumine Hydratée | D1: Alumine calcinée | E1: Soufre | F1: Fluorure d'Aluminium | G1: Anhydrite
A2: Acconage | B2: 60450271 | C2: 60450371 | D2: 60450071 | E2: 60457071 | F2: 62420172 | G2: 62420772
A3: Nettoyage Quai | B3: 60460271 | C3: 60460371 | D3: 60460071 | E3: 60467171 | F3: 62420172 | G3: 62420772
A4: Location Camion | B4: 60440271 | C4: 60440371 | D4: 60440071 | E4: 60447071 | F4: 62420172 | G4: 62420772
A5: Location Chariots, trax ou bène | B5: 60430271 | C5: 60430371 | D5: 60430071 | E5: 60437071 | F5: 62420172 | G5: 62420772
A6: Surv. Et Echantillonage | B6: 62200382 | C6: 62200282 | D6: 62200782 | E6: 62207082 | F6: 62200182 | G6: 62200982
A7: Droit de Port et Gardiennage | B7: 60450271 | C7: 60450371 | D7: 60450071 | E7: 60457071 | F7: 62420172 | G7: 62420772
A8: Main d'œuvre extérieure | B8: 60460271 | C8: 60460371 | D8: 60460071 | E8: 60467171 | F8: 62420172 | G8: 62420772
A9: Mouvement Navire | B9: 60460271 | C9: 60460371 | D9: 60460071 | E9: 60467171 | F9: 62420172 | G9: 62420772
A10: Tole ou planche pour arrimage | B10: 60460271 | C10: 60460371 | D10: 60460071 | E10: 60467171 | F10: 62420172 | G10: 62420772
A11: Certificat d'origine | B11: 60460271 | C11: 60460371 | D11: 60460071 | E11: 60467171 | F11: 62420172 | G11: 62420772
A12: Assistance & Formalités | B12: 60460271 | C12: 60460371 | D12: 60460071 | E12: 60467171 | F12: 62420172 | G12: 62420772
